bitfinex/quotes_SOLUSD_20250416
["timestamp","ask_amount","ask_price","bid_price","bid_amount"]
[1744828877618,53.71988072,127.56,127.52,53.71988072]
[1744828877911,87.55890695,127.57,127.52,61.5614769]
[1744828878089,53.71988072,127.56,127.52,53.71988072]
[1744828878286,78.17988072,127.59,127.54,53.71988072]
[1744828878498,53.71988072,127.58,127.53,53.71988072]
[1744828878804,53.71988072,127.56,127.5,7.8428832]
[1744828879006,53.71988072,127.55,127.51,53.71988072]
[1744828879309,53.71988072,127.56,127.5,7.8428832]
[1744828879504,136.51988072,127.58,127.54,53.71988072]
[1744828879697,53.71988072,127.57,127.52,53.71988072]
[1744828880313,53.71988072,127.56,127.52,53.71988072]
[1744828880605,53.71988072,127.56,127.49,45.60807303]
[1744828880798,53.71988072,127.55,127.5,53.71988072]
[1744828881000,53.71988072,127.55,127.51,53.71988072]
[1744828881193,53.71988072,127.56,127.51,53.71988072]
[1744828881399,53.71988072,127.55,127.51,53.71988072]
[1744828881601,53.71988072,127.54,127.49,61.56363317]
[1744828881915,53.71988072,127.53,127.49,53.71988072]
[1744828882111,53.71988072,127.55,127.5,53.71988072]
[1744828882314,53.71988072,127.53,127.48,6.4127]
[1744828882516,53.71988072,127.49,127.44,14.18925688]
[1744828882713,53.71988072,127.49,127.44,0.03]
[1744828882714,53.71988072,127.46,127.44,0.03]
[1744828882920,26.0,127.48,127.44,0.03]
[1744828883127,79.71988072,127.48,127.44,0.03]
[1744828883298,53.71988072,127.47,127.44,0.03]
[1744828883812,53.71988072,127.46,127.44,0.03]
[1744828884009,53.71988072,127.45,127.44,0.03]
[1744828884520,61.56609492,127.45,127.44,0.03]
[1744828885323,160.07778607,127.45,127.41,0.03]
[1744828885504,98.65385272,127.42,127.41,0.03]
[1744828885820,0.14216157,127.41,127.39,0.03]
[1744828886127,97.11385272,127.4,127.39,0.03]
[1744828886412,130.96314628,127.4,127.39,0.03]
[1744828886712,44.64964886,127.39,127.38,0.03]
[1744828886918,0.28432314,127.38,127.35,0.03]
[1744828887112,53.71988072,127.36,127.35,0.03]
[1744828888118,26.0,127.33,127.32,2.8270687]
[1744828888323,112.05348945,127.33,127.32,2.8270687]
[1744828890425,184.84950374,127.33,127.32,2.8270687]
[1744828890723,184.84950374,127.33,127.32,1e-08]
[1744828890724,158.84950374,127.33,127.32,1e-08]
[1744828891015,130.98746145,127.33,127.32,1e-08]
[1744828891218,184.84950374,127.33,127.32,1e-08]
[1744828891901,112.05348945,127.33,127.32,1e-08]
[1744828892608,130.98746145,127.33,127.32,1e-08]
[1744828893301,184.84950374,127.33,127.32,1e-08]
[1744828893505,130.98746145,127.33,127.32,1e-08]
[1744828894218,112.05348945,127.33,127.32,1e-08]
[1744828894719,78.19988072,127.33,127.32,1e-08]
[1744828895023,24.5,127.38,127.32,53.71988073]
[1744828895232,53.71988072,127.37,127.32,53.71988073]
[1744828895524,53.71988072,127.36,127.32,53.71988073]
[1744828895695,53.71988072,127.36,127.32,1e-08]
[1744828896113,7.85237534,127.35,127.32,1e-08]
[1744828896439,61.57102306,127.37,127.32,53.71988073]
[1744828896811,7.85114234,127.37,127.33,53.71988072]
[1744828897115,53.71988072,127.36,127.32,1e-08]
[1744828897415,7.85114234,127.37,127.32,1e-08]
[1744828897722,53.71988072,127.36,127.32,1e-08]
[1744828898330,112.07046817,127.38,127.32,6.38990001]
[1744828898637,53.71988072,127.37,127.32,60.10978073]
[1744828899133,78.21988072,127.38,127.33,53.71988072]
[1744828899443,78.21988072,127.38,127.32,6.38990001]
[1744828899444,0.28432314,127.31,127.2,61.61088072]
[1744828899731,18.79181043,127.29,127.2,7.891]
[1744828899935,53.71988072,127.27,127.21,53.71988072]
[1744828900238,53.71988072,127.25,127.2,61.61088072]
[1744828900436,53.71988072,127.22,127.19,0.03]
[1744828900645,53.71988072,127.2,127.19,0.03]
[1744828901015,126.0894103,127.2,127.19,0.03]
[1744828901332,53.71988072,127.2,127.19,0.03]
[1744828901708,26.0,127.23,127.19,0.03]
[1744828902227,53.71988072,127.21,127.19,0.03]
[1744828902738,24.42,127.2,127.19,0.03]
[1744828902917,53.71988072,127.2,127.19,0.03]
[1744828904125,53.71988072,127.21,127.19,0.03]
[1744828904331,78.13988072,127.22,127.19,0.03]
[1744828904531,53.71988072,127.21,127.19,0.03]
[1744828904732,24.42,127.22,127.19,0.03]
[1744828904733,78.13988072,127.22,127.19,0.03]
[1744828904928,24.42,127.22,127.19,0.03]
[1744828905232,53.71988072,127.21,127.19,0.03]
[1744828905610,53.71988072,127.2,127.19,0.03]
[1744828906015,53.71988072,127.21,127.19,0.03]
[1744828906537,53.71988072,127.2,127.19,0.03]
[1744828906740,107.43976144,127.2,127.19,0.03]
[1744828907126,126.51589501,127.2,127.19,0.03]
[1744828907321,26.0,127.17,127.11,6.3899]
[1744828907546,53.71988072,127.13,127.11,6.3899]
[1744828908744,53.71988072,127.12,127.09,0.03]
[1744828908934,53.71988072,127.1,127.09,0.03]
[1744828909646,7.86598865,127.13,127.09,0.03]
[1744828910010,53.71988072,127.1,127.09,0.03]
[1744828910239,61.58770133,127.1,127.09,0.03]
[1744828910443,158.68155405,127.1,127.09,0.03]
[1744828910610,86.02770133,127.1,127.09,0.03]
[1744828911343,158.82371562,127.1,127.09,0.03]
[1744828911532,44.933972,127.08,127.07,2.8270687]
[1744828911739,26.0,127.08,127.07,2.8270687]
[1744828911942,79.71988072,127.08,127.07,2.8270687]
[1744828912146,32.30782061,127.1,127.07,2.8270687]
[1744828912347,53.71988072,127.08,127.07,2.8270687]
[1744828912535,0.28432314,127.06,126.99,9.44598653]
[1744828912735,18.64964886,127.07,126.99,7.87438653]
[1744828912935,53.71988072,127.05,126.99,7.87438653]
[1744828913130,80.00420386,127.08,127.0,53.71988072]
[1744828913131,104.17988072,127.08,127.0,53.71988072]
[1744828913335,53.71988072,127.06,127.02,53.71988072]
[1744828913726,53.71988072,127.03,126.99,7.87438653]
[1744828913923,18.933972,127.07,126.99,7.87438653]
[1744828913924,53.71988072,127.02,126.99,7.87438653]
[1744828914154,53.71988072,127.02,126.98,14.25483465]
[1744828914654,7.87285907,127.02,126.96,53.71988072]
[1744828914949,53.71988072,126.98,126.95,7.87711697]
[1744828915250,53.71988072,126.96,126.88,34.34762997]
[1744828915454,0.28432314,127.0,126.89,61.60072239]
[1744828915634,50.46,127.0,126.93,26.0]
[1744828915945,53.71988072,127.0,126.95,53.71988072]
[1744828916126,53.71988072,127.01,126.96,53.71988072]
[1744828916322,53.71988072,127.0,126.96,7.87649653]
[1744828916536,24.46,127.03,126.97,53.71988072]
[1744828916723,32.3301022,127.07,126.99,26.0]
[1744828916943,53.71988072,127.04,127.0,53.71988072]
[1744828917229,3.98006977,127.05,126.96,34.11263786]
[1744828917429,53.71988072,127.0,126.96,14.42139653]
[1744828917657,53.71988072,126.99,126.96,14.42139653]
[1744828917956,53.71988072,126.97,126.95,7.87698192]
[1744828918128,53.71988072,127.0,126.95,7.87698192]
[1744828918635,53.71988072,126.99,126.95,7.87698192]
[1744828919638,24.46,127.01,126.95,7.87698192]
[1744828919841,53.71988072,126.99,126.95,7.87698192]
[1744828920244,24.46,127.01,126.97,53.71988072]
[1744828921044,24.46,127.01,126.98,7.87525594]
[1744828921443,24.46,127.01,126.97,7.87566433]
[1744828921955,78.17988072,127.01,126.97,7.87566433]
[1744828922152,53.71988072,127.0,126.97,7.87566433]
[1744828922859,24.46,127.01,126.98,53.71988072]
[1744828923059,24.48,127.08,127.0,53.71988072]
[1744828923242,53.71988072,127.07,127.02,53.71988072]
[1744828923440,53.71988072,127.03,126.99,7.87463579]
[1744828923744,26.0,127.07,126.99,7.87463579]
[1744828923745,53.71988072,127.01,126.99,7.87463579]
[1744828923952,50.48,127.08,126.98,27.56315766]
[1744828924147,53.71988072,126.99,126.97,14.44420525]
[1744828924345,53.71988072,126.98,126.95,7.87692557]
[1744828924556,78.19988072,127.02,126.93,81.29413424]
[1744828924755,24.48,127.02,126.97,53.71988072]
[1744828924955,24.48,127.02,127.0,7.87401574]
[1744828925142,24.48,127.07,127.01,53.71988072]
[1744828925348,24.48,127.07,127.02,53.71988072]
[1744828925656,24.48,127.07,127.01,6.5039]
[1744828925657,53.71988072,127.05,127.01,6.5039]
[1744828925858,53.71988072,127.05,127.01,60.22378072]
[1744828926060,53.71988072,127.05,127.01,6.5039]
[1744828926366,24.48,127.07,127.0,7.87401574]
[1744828926551,53.71988072,127.02,127.0,7.87401574]
[1744828926753,53.71988072,127.03,127.0,7.87401574]
[1744828926959,53.71988072,127.05,127.0,61.59389646]
[1744828927164,53.71988072,127.03,127.0,7.87401574]
[1744828927464,53.71988072,127.03,126.99,7.87463579]
[1744828927659,32.34993168,127.07,126.99,61.59451651]
[1744828927867,53.71988072,127.06,127.01,53.71988072]
[1744828928244,53.71988072,127.03,126.99,7.87463579]
[1744828928565,18.79181043,127.07,126.99,7.87463579]
[1744828928750,53.71988072,127.02,126.99,7.87463579]
[1744828929068,53.71988072,127.01,126.98,7.8750262]
[1744828929237,53.71988072,126.99,126.96,7.8761468]
[1744828929567,53.71988072,126.97,126.93,14.49508287]
[1744828929744,53.71988072,126.95,126.93,14.49508287]
[1744828930073,53.71988072,126.95,126.93,6.6169]
[1744828930362,18.933972,127.01,126.9,81.30065297]
[1744828930363,24.4,126.96,126.9,81.30065297]
[1744828930542,53.71988072,126.93,126.9,7.88022064]
[1744828930739,53.71988072,126.92,126.89,14.26156998]
[1744828930945,81.96001933,126.96,126.89,14.26156998]
[1744828931141,53.71988072,126.91,126.89,0.03]
[1744828931371,53.71988072,126.92,126.89,0.03]
[1744828931850,107.43976144,126.9,126.89,0.03]
[1744828932052,131.85976144,126.9,126.89,0.03]
[1744828932248,131.85976144,126.9,126.84,7.91387943]
[1744828932448,78.13988072,126.9,126.84,0.03]
[1744828932756,53.71988072,126.86,126.84,0.03]
[1744828932946,323.69988072,126.9,126.84,0.03]
[1744828933140,53.71988072,126.85,126.84,0.03]
[1744828933340,7.88167383,126.88,126.84,0.03]
[1744828933541,53.71988072,126.85,126.84,0.03]
[1744828934142,18.64964886,126.84,126.81,2.8270687]
[1744828934354,53.71988072,126.82,126.81,2.8270687]
[1744828934555,53.71988072,126.83,126.81,2.8270687]
[1744828934754,53.71988072,126.82,126.81,2.8270687]
[1744828935365,7.88270534,126.86,126.81,2.8270687]
[1744828935562,53.71988072,126.82,126.81,2.8270687]
[1744828935779,7.88270534,126.86,126.81,2.8270687]
[1744828935955,53.71988072,126.85,126.81,2.8270687]
[1744828936164,53.71988072,126.84,126.81,2.8270687]
[1744828936667,53.71988072,126.82,126.81,2.8270687]
[1744828937265,67.93219007,126.82,126.81,2.8270687]
[1744828937462,18.64964886,126.81,126.72,14.53474844]
[1744828937875,53.71988072,126.77,126.72,68.25462916]
[1744828938048,53.71988072,126.78,126.7,27.62430938]
[1744828938250,53.71988072,126.76,126.7,27.62430938]
[1744828938572,53.71988072,126.76,126.71,53.71988072]
[1744828938868,59.92528837,126.82,126.74,53.71988072]
[1744828939067,53.71988072,126.77,126.7,53.62430938]
[1744828939264,53.71988072,126.78,126.73,53.71988072]
[1744828939464,26.0,126.82,126.75,53.71988072]
[1744828939663,24.44,126.84,126.8,53.71988072]
[1744828939885,24.44,126.84,126.76,26.0]
[1744828939886,7.88164082,126.88,126.79,6.2469]
[1744828940074,53.71988072,126.82,126.79,6.2469]
[1744828940250,0.14216157,126.87,126.79,6.2469]
[1744828940251,53.71988072,126.83,126.79,6.2469]
[1744828940444,53.71988072,126.8,126.73,6.2469]
[1744828940670,53.71988072,126.81,126.73,32.2469]
[1744828940848,53.71988072,126.79,126.73,6.2469]
[1744828941050,53.71988072,126.79,126.74,53.71988072]
[1744828941270,24.44,126.83,126.76,53.71988072]
[1744828941470,32.32468272,126.83,126.76,53.71988072]
[1744828941693,78.15988072,126.83,126.78,53.71988072]
[1744828941876,24.44,126.83,126.78,53.71988072]
[1744828942310,32.32486244,126.83,126.74,7.88965306]
[1744828942598,24.44,126.83,126.81,53.71988072]
[1744828942775,24.44,126.83,126.76,26.0]
[1744828942972,24.44,126.83,126.8,53.71988072]
[1744828943283,24.44,126.88,126.82,61.60507233]
[1744828943468,24.44,126.88,126.82,53.71988072]
[1744828943469,53.71988072,126.86,126.82,53.71988072]
[1744828943670,53.71988072,126.86,126.81,53.71988072]
[1744828943878,32.32150607,126.88,126.82,53.71988072]
[1744828944074,24.44,126.88,126.83,53.71988072]
[1744828944283,53.71988072,126.91,126.86,53.71988072]
[1744828944488,53.71988072,126.9,126.86,53.71988072]
[1744828944689,53.71988072,126.89,126.83,32.0339]
[1744828944903,53.71988072,126.88,126.84,53.71988072]
[1744828945200,53.71988072,126.9,126.85,53.71988072]
[1744828945381,53.71988072,126.93,126.88,53.71988072]
[1744828945702,53.71988072,126.89,126.84,7.88370304]
[1744828945890,18.64964886,126.93,126.84,61.60358376]
[1744828946200,53.71988072,126.92,126.87,53.71988072]
[1744828946394,7.94073751,126.94,126.87,53.71988072]
[1744828946694,53.71988072,126.92,126.87,53.71988072]
[1744828946875,53.71988072,126.91,126.84,7.88370304]
[1744828947079,53.71988072,126.93,126.89,53.71988072]
[1744828947397,0.063,126.94,126.91,53.71988072]
[1744828947703,0.063,126.94,126.93,53.71988072]
[1744828948298,0.063,126.94,126.9,7.88022064]
[1744828948474,0.063,126.94,126.93,53.71988072]
[1744828949172,24.44,127.01,126.94,6.4021]
[1744828949372,24.44,127.01,126.98,53.71988072]
[1744828949584,53.71988072,127.03,126.98,53.71988072]
[1744828949787,24.44,127.06,127.01,53.71988072]
[1744828950208,53.71988072,127.05,127.01,53.71988072]
[1744828950504,24.44,127.06,126.98,53.71988072]
[1744828950505,53.71988072,127.03,126.98,53.71988072]
[1744828950801,7.86782061,127.1,126.97,1.5515]
[1744828951005,53.71988072,127.02,126.97,1.5515]
[1744828951177,72.51169115,127.08,126.98,19.68796089]
[1744828951178,53.71988072,127.05,126.98,19.68796089]
[1744828951499,53.71988072,127.04,126.96,7.87649653]
[1744828951683,53.71988072,127.0,126.96,27.56773786]
[1744828951883,24.44,127.05,126.93,58.18360118]
[1744828951884,53.71988072,126.98,126.93,53.71988072]
[1744828952095,53.71988072,126.98,126.94,53.71988072]
[1744828952394,53.71988072,126.99,126.94,53.71988072]
[1744828952977,53.71988072,127.0,126.95,61.59699769]
[1744828953190,53.71988072,126.97,126.93,7.87835815]
[1744828953407,53.71988072,126.96,126.93,7.87835815]
[1744828953907,53.71988072,126.97,126.93,7.87835815]
[1744828954082,53.71988072,126.96,126.93,7.87835815]
[1744828954280,53.51988072,126.95,126.92,7.87891118]
[1744828954480,81.2750772,127.02,126.92,61.5987919]
[1744828954692,81.2750772,127.02,126.93,53.71988072]
[1744828954891,7.87459487,127.0,126.94,7.87773751]
[1744828955091,53.71988072,126.98,126.94,61.59761823]
[1744828955292,53.71988072,126.98,126.94,7.87773751]
[1744828956180,53.71988072,126.96,126.91,63.20831821]
[1744828956503,24.44,126.99,126.94,53.71988072]
[1744828956686,78.15988072,126.99,126.94,53.71988072]
[1744828957005,53.71988072,127.02,126.97,61.59575691]
[1744828957178,78.15988072,127.04,126.99,53.71988072]
[1744828957376,78.15988072,127.04,126.97,27.56556666]
[1744828957377,24.44,127.04,127.0,53.71988072]
[1744828957991,24.44,127.04,126.98,6.5172]
[1744828958191,53.71988072,127.03,126.98,60.23708072]
[1744828958391,53.71988072,127.03,126.98,6.5172]
[1744828958589,24.44,127.04,126.98,60.23708072]
[1744828958803,53.71988072,127.03,126.98,60.23708072]
[1744828958996,53.71988072,127.0,126.97,7.87587619]
[1744828959298,53.71988072,126.99,126.96,7.87649653]
[1744828959692,7.8726082,127.03,126.96,7.87649653]
[1744828959693,32.31174448,127.04,126.96,27.56773786]
[1744828959893,78.15988072,127.04,126.99,53.71988072]
[1744828960094,24.44,127.04,127.0,53.71988072]
[1744828960307,53.71988072,127.03,126.98,53.71988072]
[1744828960799,53.71988072,127.02,126.97,79.71988072]
[1744828960998,53.71988072,127.02,126.98,61.59513666]
[1744828961197,24.44,127.04,126.99,53.71988072]
[1744828961501,24.38,127.09,127.03,53.71988072]
[1744828961706,24.38,127.09,127.05,53.71988072]
[1744828962490,53.78288072,127.1,127.05,53.71988072]
[1744828962805,0.063,127.1,127.04,19.07613357]
[1744828963114,0.063,127.1,127.08,53.71988072]
[1744828963281,0.063,127.1,127.09,53.71988072]
[1744828964509,0.063,127.1,127.06,27.54604123]
[1744828964684,0.063,127.1,127.09,53.71988072]
[1744828965212,0.063,127.1,127.09,61.5883204]
[1744828965788,0.063,127.1,127.08,61.58867231]
[1744828965988,53.78288072,127.1,127.07,7.86953822]
[1744828966306,0.063,127.1,127.06,53.71988072]
[1744828966509,0.063,127.1,127.07,53.71988072]
[1744828967005,0.063,127.1,127.08,7.86905886]
[1744828967514,0.063,127.1,127.08,61.58893958]
[1744828967689,0.063,127.1,127.09,53.71988072]
[1744828968085,0.063,127.12,127.09,98.36952958]
[1744828968310,0.063,127.12,127.11,53.71988072]
[1744828969198,0.063,127.12,127.1,7.86782061]
[1744828969398,0.063,127.12,127.1,61.58770133]
[1744828969595,53.78288072,127.12,127.09,7.86818879]
[1744828969798,53.71988072,127.11,127.07,61.58955885]
[1744828970011,53.78288072,127.12,127.07,81.26375417]
[1744828970319,53.71988072,127.11,127.07,7.86967813]
[1744828970613,53.71988072,127.09,127.05,7.87091696]
[1744828970791,53.71988072,127.09,127.05,61.59079768]
[1744828970988,53.71988072,127.09,127.04,7.87153652]
[1744828971196,53.71988072,127.08,127.04,7.87153652]
[1744828971397,0.063,127.12,127.06,53.71988072]
[1744828971712,0.063,127.12,127.11,53.71988072]
[1744828973104,0.063,127.12,127.11,61.58708235]
[1744828975825,53.78288072,127.12,127.06,7.87029749]
[1744828976003,0.063,127.12,127.07,30.0]
[1744828976204,53.78288072,127.12,127.07,83.71988072]
[1744828976508,53.71988072,127.11,127.07,83.71988072]
[1744828976916,53.71988072,127.11,127.07,53.71988072]
[1744828977426,53.71988072,127.11,127.07,61.588947]
[1744828977822,53.71988072,127.11,127.07,53.71988072]
[1744828977999,53.71988072,127.09,127.05,7.87091696]
[1744828978323,53.71988072,127.11,127.06,53.71988072]
[1744828978524,0.063,127.12,127.07,53.71988072]
[1744828978819,53.78288072,127.12,127.08,53.71988072]
[1744828979014,53.78288072,127.12,127.07,53.71988072]
[1744828979220,61.64959977,127.12,127.07,53.71988072]
[1744828979410,61.64959977,127.12,127.07,61.58902027]
[1744828980226,53.78288072,127.12,127.07,61.58902027]
[1744828980609,0.063,127.12,127.07,61.58902027]
[1744828980805,53.78288072,127.12,127.07,61.58902027]
[1744828981013,53.71988072,127.08,127.03,51.92859959]
[1744828981210,53.71988072,127.1,127.06,53.71988072]
[1744828981403,53.71988072,127.11,127.07,7.86967813]
[1744828981812,61.58714589,127.11,127.07,7.86967813]
[1744828982009,53.71988072,127.1,127.07,7.86967813]
[1744828982323,53.71988072,127.08,126.99,32.0696]
[1744828982529,53.71988072,127.08,126.95,0.03]
[1744828982530,26.0,127.06,127.0,30.0]
[1744828982737,53.71988072,127.01,126.95,0.03]
[1744828982929,53.71988072,126.96,126.95,0.03]
[1744828983235,107.43976144,126.96,126.95,0.03]
[1744828983404,7.87649653,126.96,126.95,0.03]
[1744828983610,134.1080684,126.96,126.95,0.03]
[1744828983831,115.31625797,126.96,126.95,0.03]
[1744828984019,134.39239154,126.96,126.95,0.03]
[1744828984417,19.07613357,126.95,126.88,0.03]
[1744828984622,53.71988072,126.9,126.88,0.03]
[1744828984935,53.71988072,126.91,126.88,0.03]
[1744828985121,53.71988072,126.89,126.88,0.03]
[1744828986247,26.95529879,126.92,126.88,0.03]
[1744828986425,53.71988072,126.89,126.88,0.03]
[1744828987259,53.71988072,126.9,126.88,0.03]
[1744828987549,53.71988072,126.92,126.88,0.03]
[1744828987841,24.36,126.96,126.91,53.71988072]
[1744828988044,53.71988072,126.95,126.91,53.71988072]
[1744828988224,53.71988072,126.95,126.9,53.71988072]
[1744828988428,78.07988072,126.96,126.88,0.03]
[1744828988627,53.71988072,126.95,126.91,53.71988072]
[1744828988949,245.52,126.98,126.94,53.71988072]
[1744828989248,299.23988072,126.98,126.93,53.71988072]
[1744828989423,53.71988072,126.97,126.92,53.71988072]
[1744828989630,53.71988072,126.93,126.89,7.88084167]
[1744828989850,53.71988072,126.9,126.88,0.03]
[1744828990051,53.71988072,126.89,126.88,0.03]
[1744828992656,61.60072239,126.89,126.88,0.03]
[1744828992853,53.71988072,126.89,126.88,0.03]
[1744828993033,53.71988072,126.91,126.88,0.03]
[1744828993234,24.32,126.93,126.9,53.71988072]
[1744828993539,53.71988072,126.91,126.88,0.03]
[1744828993846,53.71988072,126.89,126.88,0.03]
[1744828994241,24.46216157,126.93,126.88,0.03]
[1744828994442,53.71988072,126.92,126.88,0.03]
[1744828994845,53.71988072,126.92,126.88,7.91140961]
[1744828995444,53.71988072,126.91,126.88,0.03]
[1744828995753,53.71988072,126.92,126.88,0.03]
[1744828996154,24.32,126.93,126.89,53.71988072]
[1744828996351,24.32,126.93,126.88,0.03]
[1744828996555,24.32,126.93,126.89,53.71988072]
[1744828996735,24.32,126.93,126.9,53.71988072]
[1744828997054,53.71988072,126.97,126.92,53.71988072]
[1744828997560,53.71988072,126.97,126.94,7.87773751]
[1744828997859,12.05122088,127.01,126.96,53.71988072]
[1744828997860,53.71988072,127.01,126.96,53.71988072]
[1744828998029,53.71988072,127.02,126.98,53.71988072]
[1744828998230,253.62972759,127.07,127.01,53.71988072]
[1744828998555,299.47988072,127.07,127.02,53.71988072]
[1744828998744,245.76,127.07,127.03,53.71988072]
[1744828999060,24.32,127.08,127.05,53.71988072]
[1744828999246,24.32,127.08,127.04,53.71988072]
[1744828999647,24.32,127.08,127.05,61.59079768]
[1744828999846,53.71988072,127.1,127.05,61.59079768]
[1744829000241,53.71988072,127.11,127.07,53.71988072]
[1744829000443,53.71988072,127.09,127.05,7.87091696]
[1744829000746,53.71988072,127.1,127.05,61.59079768]
[1744829001064,53.71988072,127.08,127.04,7.87140077]
[1744829001240,26.0,127.1,127.01,19.68348948]
[1744829001440,53.71988072,127.08,127.04,53.71988072]
[1744829001637,61.58776152,127.1,127.05,61.59079768]
[1744829001862,61.58776152,127.1,126.99,50.32]
[1744829001863,53.71988072,127.08,127.03,53.71988072]
[1744829002163,53.71988072,127.07,127.02,53.71988072]
[1744829002462,53.71988072,127.05,127.0,7.87401574]
[1744829002661,53.71988072,127.03,126.99,61.59428862]
[1744829002959,53.71988072,127.05,127.0,53.71988072]
[1744829003155,24.32,127.07,127.0,53.71988072]
[1744829003550,53.71988072,127.04,127.0,53.71988072]
[1744829003758,53.71988072,127.03,127.0,7.87370893]
[1744829003949,53.71988072,127.04,127.0,7.87370893]
[1744829004254,53.71988072,127.04,126.99,61.59436726]
[1744829004465,53.71988072,127.03,126.99,7.87448654]
[1744829004950,32.18975654,127.07,127.0,53.71988072]
[1744829005213,53.71988072,127.06,127.01,53.71988072]
[1744829005365,53.71988072,127.05,127.01,53.71988072]
[1744829005558,53.71988072,127.05,127.0,53.71988072]
[1744829005751,53.71988072,127.05,127.01,7.87339579]
[1744829005958,53.71988072,127.06,127.01,61.59327651]
[1744829006272,53.71988072,127.06,127.02,53.71988072]
[1744829006432,53.71988072,127.05,127.01,7.87339579]
[1744829006644,78.03988072,127.07,127.03,53.71988072]
[1744829007165,24.32,127.07,127.04,53.71988072]
[1744829007378,53.71988072,127.11,127.06,53.71988072]
[1744829007662,61.58761819,127.11,127.06,53.71988072]
[1744829007854,53.71988072,127.1,127.05,61.59044342]
[1744829008052,53.71988072,127.06,127.0,7.87401574]
[1744829008259,53.71988072,127.04,127.0,61.59389646]
[1744829008444,53.71988072,127.03,126.97,7.87527843]
[1744829008647,53.71988072,127.03,126.98,53.71988072]
[1744829008842,53.71988072,127.05,127.0,53.71988072]
[1744829009050,24.3,127.06,127.0,53.71988072]
[1744829009259,53.71988072,127.05,127.0,53.71988072]
[1744829009759,53.71988072,127.05,127.01,7.87339579]
[1744829009943,82.8,127.09,127.04,53.71988072]
[1744829010138,82.8,127.11,127.07,53.71988072]
[1744829010343,0.063,127.1,127.07,53.71988072]
[1744829010551,53.78288072,127.1,127.02,53.71988072]
[1744829010850,53.71988072,127.09,127.04,53.71988072]
[1744829011045,53.71988072,127.06,127.02,53.71988072]
[1744829011438,53.71988072,127.06,127.01,61.59327651]
[1744829011664,53.71988072,127.06,127.02,53.71988072]
[1744829011968,82.8,127.09,127.02,61.59242209]
[1744829011969,53.71988072,127.07,127.02,61.59242209]
[1744829012170,0.063,127.1,127.04,53.71988072]
[1744829012478,0.063,127.1,127.06,53.71988072]
[1744829013355,53.78288072,127.1,127.02,81.27436194]
[1744829013558,53.78288072,127.1,127.05,53.71988072]
[1744829013861,61.65085397,127.1,127.05,53.71988072]
[1744829014072,53.71988072,127.06,127.0,50.3]
[1744829014373,53.71988072,127.07,127.02,53.71988072]
[1744829014668,53.71988072,127.07,127.0,26.0]
[1744829014669,53.71988072,127.06,127.01,53.71988072]
[1744829014871,82.8,127.09,127.04,53.71988072]
[1744829015061,61.65085397,127.1,127.05,53.71988072]
[1744829015367,53.71988072,127.08,127.04,53.71988072]
[1744829015964,53.71988072,127.09,127.04,53.71988072]
[1744829016151,53.71988072,127.08,127.04,53.71988072]
[1744829016553,53.71988072,127.08,127.01,7.87339579]
[1744829016872,53.71988072,127.09,127.05,53.71988072]
[1744829017067,53.71988072,127.09,127.04,53.71988072]
[1744829017278,7.93096295,127.1,127.06,53.71988072]
[1744829017445,61.65084367,127.1,127.05,53.71988072]
[1744829017764,0.063,127.1,127.07,53.71988072]
[1744829018573,53.71988072,127.08,127.05,6.4493]
[1744829018753,53.71988072,127.09,127.04,61.59098538]
[1744829018944,0.063,127.1,127.03,53.71988072]
[1744829019149,53.71988072,127.08,127.04,53.71988072]
[1744829019349,53.71988072,127.09,127.04,53.71988072]
[1744829019558,53.71988072,127.08,127.04,53.71988072]
[1744829019771,0.063,127.1,127.05,53.71988072]
[1744829020074,53.71988072,127.09,127.05,53.71988072]
[1744829020257,0.063,127.1,127.05,53.71988072]
[1744829020453,53.71988072,127.09,127.05,53.71988072]
[1744829020653,53.71988072,127.09,127.04,61.59097394]
[1744829021867,0.063,127.1,127.07,53.71988072]
[1744829022165,61.58868861,127.09,127.04,53.71988072]
[1744829022372,61.58868861,127.09,127.01,6.461]
[1744829022373,53.71988072,127.07,127.01,6.461]
[1744829022571,136.51988072,127.08,127.03,53.71988072]
[1744829022776,136.51988072,127.08,127.04,53.71988072]
[1744829023081,53.71988072,127.08,127.04,53.71988072]
[1744829023246,53.71988072,127.07,127.02,53.71988072]
[1744829023449,27.53990711,127.09,127.01,14.33423499]
[1744829023450,53.71988072,127.05,127.01,6.461]
[1744829023651,53.71988072,127.04,127.0,61.59358052]
[1744829023877,53.71988072,127.02,126.97,59.92668072]